Workbook

Sheet Help & PL Cal. for new employee
B2: Calculator for First PL Add (New Employee) | G2: Programmer:-
B3: Name Of Employee :- | D3: Ummed | G3: Ummed Tarad
B4: Category of employee :- | D4: Subordinate | G4: (Teacher, GSSS Raimalwada)
B5: From | C5: To | D5: Total Days | E5: PL | G5: Email ID-ummedtrdedu@gmail.com
B6: 2024-12-10 | C6: 2025-03-31 | D6: =IF(C6>B6,C6-B6+1,IF(C6<B6,"Please enter correct date value",IF(OR(B6=0,C6=0),0))) -> 112 | E6: =IF(C6>B6,FLOOR(XFC6,0.5),0) -> 4.5 | G6: Last Update:-09-04-2025 | XFC6: =IF(D4="ministrial",D6*30/365,D6*15/365) -> 4.603
A8: इस एक्सेल प्रोग्राम में आपकी सुविधा के लिए उपलब्ध है →
A9: 1 | B9: उक्त सारणी में किसी नवनियुक्त कार्मिक कि सेवा पुस्तिका में उपार्जित अवकाश की गणना कर सकते है (नियमानुसार किसी मंत्रालयिक कार्मिक को एक वर्ष में अधिकतम 30 तथा अन्य कार्मिक के हक़ में 15 PL जोड़े जाते है)
A10: 2 | B10: "PL Surender Order" शीट में किसी कार्यालय द्वारा किसी कार्मिक को एक वित्तीय वर्ष में दिए जाने वाले उपार्जित अवकाश के नकद लाभ (अधिकतम 15 दिन) का आदेश तैयार कर सकते हैं.
A11: 3 | B11: "PL Add for extra duty" शीट में किसी कार्मिक द्वारा राजकीय अवकाश के दिनों में किये गए राजकीय कार्य के बदले अर्जित उपार्जित अवकाश (1/3) की गणना/आदेश तैयार कर सकते हैं.
A12: 4 | B12: "Leave-Encashment-On-Retirenment" शीट में किसी कार्यालय से सेवानिवृत होने जा रहे किसी कार्मिक के सेवाकाल में अर्जित उपार्जित अवकाश का नकद भुगतान (अधिकतम 300) का आदेश तैयार कर सकते हैं.
B13: एक कर्मचारी के सेवानिवृत हो जाने के बाद उसे उसके खाते में शेष उपार्जित अवकाश का नगद भुगतान करने हेतु बिल बनाने से पहले निम्न कार्यवाही पूर्ण की जानी जरुरी है-
B14: (1) PPO नं जारी हो जाने के बाद पे मैनेजर पर PPO नं वेरीफाई कीजिए जिसकी प्रक्रिया इस प्रकार है-Paymanager Login » Master » Enter PPO no Enter Employee ID » Verify पर क्लिक कीजिए |
B15: (2) कार्मिक का डाटा यथा नाम, जन्मतिथि पेमेनेजर पर और PPO में एक समान होना चाहिए। अगर एक समान नहीं है-तो पहले डाटा में संशोधन करके HOD से अप्रूव करवाना होगा |
B16: (3) सेवानिवृत होने जा रहे कार्मिक के पेंशन कुलक के साथ निर्धारित प्रारूप में बजट डिमांड करनी होगी।
B17: (4) उपार्जित अवकाश के नगद भुगतान हेतु बजट हेड – 2071-01-115-01-01 निर्धारित है।
B18: (5) बजट डिमांड हेतु प्रारूप के साथ PL सम्बन्धी कार्यालय आदेश प्रति, PPO नं की प्रति लगा कर अपने पेंशन विभाग के क्षेत्रीय कार्यालय को E-mail कीजिए। बजट प्राप्त होने के बाद पे मैनेजर पर लीव इंकेशमेंट बिल बनाने की प्रक्रिया सबसे पहले Master में जाकर बजट हेड 2071-01-115-01-01 का निम्नानुसार नया ग्रुप बनाना होगा ( Group Name-अपनी सुविधानुसार)-
B19: Budget Head – 2071-01-115-01-01 → Demand No-15 → Object Head-84 → BFC Type- SF → Head Type-Voted
B20: Bill Allocation कीजिये। बिल एलोकेशन में ऑब्जेक्ट हेड 84 लिखना है। Bill Allocation करते समय Bill Name में उस ग्रुप को चुनिए जो आपने अभी बनाया है।
B21: Bill Preparation » Leave Encashment Preparation » Leave Encashment Retirement पर क्लिक कीजिए। Year चुनिए » Month चुनिए » Bill Group चुनिए » Bill No. चुनिए » Order no चुनिए।
B22: No of Days में जितने दिन उपार्जित अवकाश का भुगतान करना है उतने दिनों की संख्या भरिए। कर्मचारी को नाम या Employee ID के द्वारा सर्च कीजिये। Add पर क्लिक कीजिए।
B23: कार्मिक का उपार्जित अवकाश के नगद भुगतान का बिल (Leave Encashment Bill) बनकर तैयार है। आवश्यक डाक्यूमेंट्स अपलोड कीजिए।
B24: (कार्यालय से स्वीकृति आदेश, नियोक्ता अधिकारी द्वारा जारी सेवानिवृति आदेश, कार्यमुक्ति रिपोर्ट, PPO प्रति) बिल को DDO फॉरवर्ड कीजिए। बिल पर ई साइन करके ट्रेजरी को फॉरवर्ड कीजिए।
B25: नोट : कार्मिक को सेवानिवृत्त पीएल भुगतान हेतु नए बनाये ” बजट हेड 2071 ” ग्रुप में ट्रांसफर नही करना है।

Sheet PL Surender Order
A1: dk;kZy;%& jktdh; mPp ek/;fed fo|ky; ----------------------------------------------
A2: &%% dk;kZy; vkns'k %%&
A3: for foHkkx] jktLFkku ljdkj ds vkns'k Øekad ,Q&4¼1½ ,QMh :Yl@2008 fnukad&03-04-2008 ,oa ,Q1¼12½,QMh@:Yl@2005@t;iqj fnukad%&06-02-2009 ds vuqlkj LFkkuh; dk;kZy; ds v/khu dk;Zjr fuEukafdr vf/kdkfj;ksa@dkfeZdksa dks muds vkosnu fd;s tkus ij fofr; o"kZ% 2025&26 gsrq fuEukuqlkj mikftZr vodk'k ds 15 fnol dk udn Hkqxrku fd;s tkus dh Lohd`fr çnku dh tkrh gSA
A4: Ø- la- | B4: dkfeZd dk uke | D4: in | E4: inLFkkiu LFkku | F4: mikftZr vodk'k ds udn Hkqxrku fd;s tkus dk ekg | G4: mikftZr vodk'k ds udn Hkqxrku gsrq vkosfnr fnukad | H4: mikftZr vodk'k dk ys[kk | K4: is& eSfVªDl ysoy | L4: ewy osru | M4: eagxkbZ HkŸkk ¿fu;ekuqlkjÀ | N4: mikftZr vodk'k ds 15 fnol dk udn Hkqxrku | Q4: fo-fo-
H5: udn Hkqxrku ls iwoZ dkfeZd ds [kkrs esa vf/k'ks"k mik-vo- | I5: udnhdj.k gsrq Lohd`r mik-vodk'k | J5: udn Hkqxrku i'pkr dkfeZd ds [kkrs esa 'ks"k mik-vo- | M5: 55% | N5: ewy osru | O5: eagxkbZ HkŸkk ¿fu;ekuqlkjÀ | P5: ;ksx
O6: =M5 -> 55%
A7: 1 | B7: 1 | J7: =IF(H7="","",H7-I7) ->  | K7: L-11 | L7: 41500 | M7: =ROUND(L7*$M$5,0) -> 22825 | N7: =ROUND(L7*0.5,0) -> 20750 | O7: =ROUND(N7*$O$6,0) -> 11413 | P7: =SUM(N7:O7) -> 32163
A8: 2 | J8: =IF(H8="","",H8-I8) ->  | K8: L-11 | L8: 41500 | M8: =ROUND(L8*$M$5,0) -> 22825 | N8: =ROUND(L8*0.5,0) -> 20750 | O8: =ROUND(N8*$O$6,0) -> 11413 | P8: =SUM(N8:O8) -> 32163
M9: 0 | N9: =ROUND(L9*0.5,0) -> 0 | O9: 0 | P9: =SUM(N9:O9) -> 0
M10: 0 | N10: =ROUND(L10*0.5,0) -> 0 | O10: 0 | P10: =SUM(N10:O10) -> 0
M11: 0 | N11: =ROUND(L11*0.5,0) -> 0 | O11: 0 | P11: =SUM(N11:O11) -> 0
M12: 0 | N12: =ROUND(L12*0.5,0) -> 0 | O12: 0 | P12: =SUM(N12:O12) -> 0
M13: 0 | N13: =ROUND(L13*0.5,0) -> 0 | O13: 0 | P13: =SUM(N13:O13) -> 0
M14: 0 | N14: =ROUND(L14*0.5,0) -> 0 | O14: 0 | P14: =SUM(N14:O14) -> 0
M15: 0 | N15: =ROUND(L15*0.5,0) -> 0 | O15: 0 | P15: =SUM(N15:O15) -> 0
M16: 0 | N16: =ROUND(L16*0.5,0) -> 0 | O16: 0 | P16: =SUM(N16:O16) -> 0
A18: mDr Lohd`fr dk bUnzkt lacaf/kr vf/kdkjh@dkfeZd dh ewy lsok iqfLrdk ds vodk’k ys[ks esa dj fn;k x;k gSA
M19: DDO SEAL & SIGNATURE
O20: =CONCATENATE(E1,K1) -> 
A22: Øekad%& | G22: fnukad%&
A23: çfrfyfi%&
C24: 1- midks"kkf/kdkjh@dks"kkf/kdkjh] midks"kky;@dks"kky;-------------------------------------------------A
C25: 2- lacaf/kr dkfeZd lsok fooj.kA | M25: DDO SEAL & SIGNATURE
C26: 3- dk;kZy; çfrA
O27: =O20 -> 

Sheet Leave-Encashment-On-Retirenment
B2: dk;kZy;%& jktdh; mPp ek/;fed fo|ky; ------------------------------------------------------------
B3: Øekad %&---------------------------------------------------------------------- | G3: fnukad %&-----------------------------------------
B4: &%% lsokfuo`fÙk mikftZr vodk'k Hkqxrku Lohd`fr vkns'k %%&
B5: jktLFkku flfoy lsok isa'ku fu;e&1996 ds fu;e&50 ,oa 53 ds vuqlkj avf/kokf"kZdh vk;q ¼60 o"kZ½ iw.kZ gksus vFkok lsokfuo`fÙk isa'ku çkIr djus ij LFkkuh; dk;kZy; v/khu fuEu dkfeZd dks muds gd esa foÙk foHkkx dh vf/klwpuk Øekad&,Q1¼12½12 foÙk@fu;e@2005 fnukad&17-11-2014 mikftZr vodk'k ds vuqlkj.k es x.kukuqlkj ys[kksa esa cdk;k@vo'ks"k 300 fnuksa ls vukf/kd ds mikftZr vodk'k ds ,ot esa muds leku vodk'k osru dh jkf'k fuEu fooj.kkuqlkj lacaf/kr dkfeZd ds [kkrs esa vkgfjr fd;s tkus dh vuqefr ,rn }kjk çnku dh tkrh gSA
B6: &%% dkfeZd fooj.k %%&
B7: S. No. | C7: Name of Employee | D7: Designation | E7: Emp ID No | F7: Bank A/C No | G7: GPF No. | H7: Date Of Birth | I7: Retirement Date | J7: Days Sanctioned (PL) | K7: Basic Pay | L7: Pay Matrix Level
B8: 1 | C8: Choudhary | D8: Teacher | E8: RJJO19882123456 | F8: 6110000000 | G8: 12345 | H8: 1965-08-20 | I8: 2025-08-31 | J8: 300 | K8: 75,400 | L8: L-14
B9: ::- Calculation Of Leave Encashment on Retirement -::
B10: Sr. No. | C10: Name of Employee | D10: Date Of Retirement | E10: Employee's Last Basic Pay (Pay Matrix level) | F10: Last DA Rate (%) | G10: Total Days of PL | H10: Pay and Allowance | K10: Deduction | L10: Net Pay
H11: Basic | I11: DA | J11: Gross Amount
B12: 1 | C12: =C8 -> Choudhary | D12: =I8 -> 2025-08-31 | E12: =CONCATENATE(K8," ","(",L8,")") -> 75400 (L-14) | F12: 55% | G12: =J8 -> 300 | H12: =ROUNDUP(K8/30*G12,0) -> 754000 | I12: =ROUNDUP(H12*F12,0) -> 414700 | J12: =SUM(H12,I12) -> 1168700 | K12: 0 | L12: =J12-K12 -> 1168700
B14: Allowances | E14: Net payble amount in words:-…………………………………………………………………………………….
B15: 1 | C15: =H11 -> Basic | D15: =H12 -> 754000
B16: 2 | C16: =I11 -> DA | D16: =I12 -> 414700 | E16: Seal And Signature Of DDO
B17: Gross Amount = | D17: =D15+D16 -> 1168700
B18: Deductions
B19: 1 | C19: =K11 -> 0 | D19: =K12 -> 0
B20: Net Pay = | D20: =D17-D19 -> 1168700

Sheet PL Add for extra duty
A1: dk;kZy;%& jktdh; mPp ek/;fed fo|ky; -----------------------------------------------------
A3: &% dk;kZy; vkns'k %&
A4: jktLFkku lsok fu;e&92 ch ds rgr fuEu dkfeZdksa dks fuEukuqlkj mikftZr vodk’k dk ifjykHk Lohd`r fd;k tkdj lacaf/kr dkfeZd ds vodk’k [kkrs esa fu;ekuqlkj ,d frgkbZ ds fglkc ls tksM+us dh vuqefr iznku dh tkrh gSA
A5: Ø- la- | B5: Ukke vf/kdkjh@ deZpkjh e; in | C5: inLFkkiu | D5: fnolksa dh la[;k | G5: ns; mikftZr vodk’k ¼fnuksa esa½ | H5: fo'ks"k fooj.k
D6: fnukad ls | E6: fnukad rd | F6: fnu
A7: 1 | B7: Jh mEesn rj³ | C7: jkmekfo jk;eyokM+k | D7: 2001-06-22 | E7: 2001-06-30 | F7: =IF(D7>0,E7-D7+1,0) -> 9 | G7: =ROUND(F7/3,0) -> 3 | H7: yksd tqfEc’k ifj;kstuk }kjk vk;ksftr f’k{kd izf{k’k.k esa fnukad 22-06-2001 ls 30-06-2001 rd mifLFkfr nhA
D8: 2016-05-11 | E8: 2016-06-19 | F8: =IF(D8>0,E8-D8+1,0) -> 40 | G8: =ROUND(F8/3,0) -> 13 | H8: ernkrk lwfp;ksa ds ‘’kqf)dj.k ,oa izek.khdj.k gsrq jk"Vªh; vfHk;ku fnukad 11-05-2016 ls 19-06-2016 rd
D9: 2002-05-23 | E9: 2002-06-30 | F9: 39 | G9: 13
D10: 2006-05-17 | E10: 2006-06-30 | F10: 45 | G10: 15
D11: 2007-06-17 | E11: 2007-06-30 | F11: 14 | G11: 5
F12: 0 | G12: 0
B13: ;ksx& | F13: =SUM(F7:F12) -> 147 | G13: =SUM(G7:G12) -> 49
H14: MhMhvks gLrk{kj e; eqgj
A15: Øekad %&---------------------------------------------------------------------------------------- | F15: fnukad %&---------------------------------------
A16: çfrfyfi%&
B17: 1- midks"kkf/kdkjh@dks"kkf/kdkjh] midks"kky;@dks"kky;-------------------------------------------------A
B18: 2- lacaf/kr dkfeZd lsok fooj.kA
B19: 3- dk;kZy; çfrA
H20: =H14 -> MhMhvks gLrk{kj e; eqgj
